{"text_format":"1","workbook":"xlsx","n_sheets":5,"sheets":["Data Table","Data with Scroll Bar (Vertical)","ActiveX Control","scroll bars","diy"],"not_rendered":{"charts":0,"images":1,"macros":1,"external_links":0,"defined_names":0,"comments":0,"pivot_tables":0},"unopened":[],"bounds":{"document_bytes":16777216,"sheet_cells":100000,"rows_first":2000,"rows_last":500,"rows_between":2000,"halvings":0,"cell_chars":16384,"cell_head_chars":4096},"cells_cut":0,"cells_raw":0,"read":"whole","date_system":"1900"}

{"sheet":"Data Table","index":0,"n_rows":34,"n_cols":8,"rows_kept":34,"cut":false,"hidden":false,"merged":[[1,1,1,4]]}
[null,null,null,null,null,null,null,0]
[null,"Company Profile List"]
[]
[null,"Company Owner","Product","Number of Employee","Yearly Revenue (M)"]
[null,"Laura","Car",100,10]
[null,"James","Car",120,20]
[null,"Jane","Computer",95,12]
[null,"Peter","Garments",500,10]
[null,"Lara","Garments",700,15]
[null,"William","Oil",250,5]
[null,"Nicolas","Gas",300,20]
[null,"Haddin","Car",110,22]
[null,"Peterson","Chemicals",350,25]
[null,"Rob","Weapons",300,10]
[null,"Flintoff","Weapons",100,10]
[null,"Adam","Weapons",120,20]
[null,"Kiera","Chemicals",95,12]
[null,"Jason","Chemicals",500,10]
[null,"Ashish","Car",250,22]
[null,"Hiran","Car",300,25]
[null,"Dushan","Car",110,10]
[null,"Joy","Computer",350,10]
[null,"Kane","Garments",700,10]
[null,"Beer","Garments",650,15]
[null,"Mike","Weapons",100,10]
[null,"Gray","Weapons",120,10]
[null,"Tison","Chemicals",95,20]
[null,"Erikson","Chemicals",500,12]
[null,"Nicles","Car",350,10]
[null,"Brek","Car",700,10]
[null,"Drek","Computer",650,15]
[null,"Laren","Oil",300,20]
[null,"Jovan","Gas",110,22]
[null,"Flintar","Car",350,25]

{"sheet":"Data with Scroll Bar (Vertical)","index":1,"n_rows":14,"n_cols":5,"rows_kept":14,"cut":false,"hidden":false,"merged":[[1,1,1,4]]}
[]
[null,"Use of Scroll Bar"]
[]
[null,"Company Owner","Product","Number of Employee","Yearly Revenue (M)"]
[null,{"$f":"INDEX('Data Table'!$B$5:$E$34,'Data Table'!$H$1+ROWS('Data Table'!$B$5:B5),COLUMNS('Data Table'!$B$5:B5))","v":"Laura"},{"$f":"INDEX('Data Table'!$B$5:$E$34,'Data Table'!$H$1+ROWS('Data Table'!$B$5:C5),COLUMNS('Data Table'!$B$5:C5))","v":"Car"},{"$f":"INDEX('Data Table'!$B$5:$E$34,'Data Table'!$H$1+ROWS('Data Table'!$B$5:D5),COLUMNS('Data Table'!$B$5:D5))","v":100},{"$f":"INDEX('Data Table'!$B$5:$E$34,'Data Table'!$H$1+ROWS('Data Table'!$B$5:E5),COLUMNS('Data Table'!$B$5:E5))","v":10}]
[null,{"$f":"INDEX('Data Table'!$B$5:$E$34,'Data Table'!$H$1+ROWS('Data Table'!$B$5:B6),COLUMNS('Data Table'!$B$5:B6))","v":"James"},{"$f":"INDEX('Data Table'!$B$5:$E$34,'Data Table'!$H$1+ROWS('Data Table'!$B$5:C6),COLUMNS('Data Table'!$B$5:C6))","v":"Car"},{"$f":"INDEX('Data Table'!$B$5:$E$34,'Data Table'!$H$1+ROWS('Data Table'!$B$5:D6),COLUMNS('Data Table'!$B$5:D6))","v":120},{"$f":"INDEX('Data Table'!$B$5:$E$34,'Data Table'!$H$1+ROWS('Data Table'!$B$5:E6),COLUMNS('Data Table'!$B$5:E6))","v":20}]
[null,{"$f":"INDEX('Data Table'!$B$5:$E$34,'Data Table'!$H$1+ROWS('Data Table'!$B$5:B7),COLUMNS('Data Table'!$B$5:B7))","v":"Jane"},{"$f":"INDEX('Data Table'!$B$5:$E$34,'Data Table'!$H$1+ROWS('Data Table'!$B$5:C7),COLUMNS('Data Table'!$B$5:C7))","v":"Computer"},{"$f":"INDEX('Data Table'!$B$5:$E$34,'Data Table'!$H$1+ROWS('Data Table'!$B$5:D7),COLUMNS('Data Table'!$B$5:D7))","v":95},{"$f":"INDEX('Data Table'!$B$5:$E$34,'Data Table'!$H$1+ROWS('Data Table'!$B$5:E7),COLUMNS('Data Table'!$B$5:E7))","v":12}]
[null,{"$f":"INDEX('Data Table'!$B$5:$E$34,'Data Table'!$H$1+ROWS('Data Table'!$B$5:B8),COLUMNS('Data Table'!$B$5:B8))","v":"Peter"},{"$f":"INDEX('Data Table'!$B$5:$E$34,'Data Table'!$H$1+ROWS('Data Table'!$B$5:C8),COLUMNS('Data Table'!$B$5:C8))","v":"Garments"},{"$f":"INDEX('Data Table'!$B$5:$E$34,'Data Table'!$H$1+ROWS('Data Table'!$B$5:D8),COLUMNS('Data Table'!$B$5:D8))","v":500},{"$f":"INDEX('Data Table'!$B$5:$E$34,'Data Table'!$H$1+ROWS('Data Table'!$B$5:E8),COLUMNS('Data Table'!$B$5:E8))","v":10}]
[null,{"$f":"INDEX('Data Table'!$B$5:$E$34,'Data Table'!$H$1+ROWS('Data Table'!$B$5:B9),COLUMNS('Data Table'!$B$5:B9))","v":"Lara"},{"$f":"INDEX('Data Table'!$B$5:$E$34,'Data Table'!$H$1+ROWS('Data Table'!$B$5:C9),COLUMNS('Data Table'!$B$5:C9))","v":"Garments"},{"$f":"INDEX('Data Table'!$B$5:$E$34,'Data Table'!$H$1+ROWS('Data Table'!$B$5:D9),COLUMNS('Data Table'!$B$5:D9))","v":700},{"$f":"INDEX('Data Table'!$B$5:$E$34,'Data Table'!$H$1+ROWS('Data Table'!$B$5:E9),COLUMNS('Data Table'!$B$5:E9))","v":15}]
[null,{"$f":"INDEX('Data Table'!$B$5:$E$34,'Data Table'!$H$1+ROWS('Data Table'!$B$5:B10),COLUMNS('Data Table'!$B$5:B10))","v":"William"},{"$f":"INDEX('Data Table'!$B$5:$E$34,'Data Table'!$H$1+ROWS('Data Table'!$B$5:C10),COLUMNS('Data Table'!$B$5:C10))","v":"Oil"},{"$f":"INDEX('Data Table'!$B$5:$E$34,'Data Table'!$H$1+ROWS('Data Table'!$B$5:D10),COLUMNS('Data Table'!$B$5:D10))","v":250},{"$f":"INDEX('Data Table'!$B$5:$E$34,'Data Table'!$H$1+ROWS('Data Table'!$B$5:E10),COLUMNS('Data Table'!$B$5:E10))","v":5}]
[null,{"$f":"INDEX('Data Table'!$B$5:$E$34,'Data Table'!$H$1+ROWS('Data Table'!$B$5:B11),COLUMNS('Data Table'!$B$5:B11))","v":"Nicolas"},{"$f":"INDEX('Data Table'!$B$5:$E$34,'Data Table'!$H$1+ROWS('Data Table'!$B$5:C11),COLUMNS('Data Table'!$B$5:C11))","v":"Gas"},{"$f":"INDEX('Data Table'!$B$5:$E$34,'Data Table'!$H$1+ROWS('Data Table'!$B$5:D11),COLUMNS('Data Table'!$B$5:D11))","v":300},{"$f":"INDEX('Data Table'!$B$5:$E$34,'Data Table'!$H$1+ROWS('Data Table'!$B$5:E11),COLUMNS('Data Table'!$B$5:E11))","v":20}]
[null,{"$f":"INDEX('Data Table'!$B$5:$E$34,'Data Table'!$H$1+ROWS('Data Table'!$B$5:B12),COLUMNS('Data Table'!$B$5:B12))","v":"Haddin"},{"$f":"INDEX('Data Table'!$B$5:$E$34,'Data Table'!$H$1+ROWS('Data Table'!$B$5:C12),COLUMNS('Data Table'!$B$5:C12))","v":"Car"},{"$f":"INDEX('Data Table'!$B$5:$E$34,'Data Table'!$H$1+ROWS('Data Table'!$B$5:D12),COLUMNS('Data Table'!$B$5:D12))","v":110},{"$f":"INDEX('Data Table'!$B$5:$E$34,'Data Table'!$H$1+ROWS('Data Table'!$B$5:E12),COLUMNS('Data Table'!$B$5:E12))","v":22}]
[null,{"$f":"INDEX('Data Table'!$B$5:$E$34,'Data Table'!$H$1+ROWS('Data Table'!$B$5:B13),COLUMNS('Data Table'!$B$5:B13))","v":"Peterson"},{"$f":"INDEX('Data Table'!$B$5:$E$34,'Data Table'!$H$1+ROWS('Data Table'!$B$5:C13),COLUMNS('Data Table'!$B$5:C13))","v":"Chemicals"},{"$f":"INDEX('Data Table'!$B$5:$E$34,'Data Table'!$H$1+ROWS('Data Table'!$B$5:D13),COLUMNS('Data Table'!$B$5:D13))","v":350},{"$f":"INDEX('Data Table'!$B$5:$E$34,'Data Table'!$H$1+ROWS('Data Table'!$B$5:E13),COLUMNS('Data Table'!$B$5:E13))","v":25}]
[null,{"$f":"INDEX('Data Table'!$B$5:$E$34,'Data Table'!$H$1+ROWS('Data Table'!$B$5:B14),COLUMNS('Data Table'!$B$5:B14))","v":"Rob"},{"$f":"INDEX('Data Table'!$B$5:$E$34,'Data Table'!$H$1+ROWS('Data Table'!$B$5:C14),COLUMNS('Data Table'!$B$5:C14))","v":"Weapons"},{"$f":"INDEX('Data Table'!$B$5:$E$34,'Data Table'!$H$1+ROWS('Data Table'!$B$5:D14),COLUMNS('Data Table'!$B$5:D14))","v":300},{"$f":"INDEX('Data Table'!$B$5:$E$34,'Data Table'!$H$1+ROWS('Data Table'!$B$5:E14),COLUMNS('Data Table'!$B$5:E14))","v":10}]

{"sheet":"ActiveX Control","index":2,"n_rows":14,"n_cols":11,"rows_kept":14,"cut":false,"hidden":false,"merged":[[1,1,1,4]]}
[null,null,null,null,null,null,null,null,null,null,0]
[null,"Company Profile List"]
[]
[null,"Company Owner","Product","Number of Employee","Yearly Revenue (M)"]
[null,{"$f":"INDEX('Data Table'!$B$5:$E$34,$K$1+ROWS('Data Table'!$B$5:B5),COLUMNS('Data Table'!$B$5:B5))","v":"Laura"},{"$f":"INDEX('Data Table'!$B$5:$E$34,$K$1+ROWS('Data Table'!$B$5:C5),COLUMNS('Data Table'!$B$5:C5))","v":"Car"},{"$f":"INDEX('Data Table'!$B$5:$E$34,$K$1+ROWS('Data Table'!$B$5:D5),COLUMNS('Data Table'!$B$5:D5))","v":100},{"$f":"INDEX('Data Table'!$B$5:$E$34,$K$1+ROWS('Data Table'!$B$5:E5),COLUMNS('Data Table'!$B$5:E5))","v":10}]
[null,{"$f":"INDEX('Data Table'!$B$5:$E$34,$K$1+ROWS('Data Table'!$B$5:B6),COLUMNS('Data Table'!$B$5:B6))","v":"James"},{"$f":"INDEX('Data Table'!$B$5:$E$34,$K$1+ROWS('Data Table'!$B$5:C6),COLUMNS('Data Table'!$B$5:C6))","v":"Car"},{"$f":"INDEX('Data Table'!$B$5:$E$34,$K$1+ROWS('Data Table'!$B$5:D6),COLUMNS('Data Table'!$B$5:D6))","v":120},{"$f":"INDEX('Data Table'!$B$5:$E$34,$K$1+ROWS('Data Table'!$B$5:E6),COLUMNS('Data Table'!$B$5:E6))","v":20}]
[null,{"$f":"INDEX('Data Table'!$B$5:$E$34,$K$1+ROWS('Data Table'!$B$5:B7),COLUMNS('Data Table'!$B$5:B7))","v":"Jane"},{"$f":"INDEX('Data Table'!$B$5:$E$34,$K$1+ROWS('Data Table'!$B$5:C7),COLUMNS('Data Table'!$B$5:C7))","v":"Computer"},{"$f":"INDEX('Data Table'!$B$5:$E$34,$K$1+ROWS('Data Table'!$B$5:D7),COLUMNS('Data Table'!$B$5:D7))","v":95},{"$f":"INDEX('Data Table'!$B$5:$E$34,$K$1+ROWS('Data Table'!$B$5:E7),COLUMNS('Data Table'!$B$5:E7))","v":12}]
[null,{"$f":"INDEX('Data Table'!$B$5:$E$34,$K$1+ROWS('Data Table'!$B$5:B8),COLUMNS('Data Table'!$B$5:B8))","v":"Peter"},{"$f":"INDEX('Data Table'!$B$5:$E$34,$K$1+ROWS('Data Table'!$B$5:C8),COLUMNS('Data Table'!$B$5:C8))","v":"Garments"},{"$f":"INDEX('Data Table'!$B$5:$E$34,$K$1+ROWS('Data Table'!$B$5:D8),COLUMNS('Data Table'!$B$5:D8))","v":500},{"$f":"INDEX('Data Table'!$B$5:$E$34,$K$1+ROWS('Data Table'!$B$5:E8),COLUMNS('Data Table'!$B$5:E8))","v":10}]
[null,{"$f":"INDEX('Data Table'!$B$5:$E$34,$K$1+ROWS('Data Table'!$B$5:B9),COLUMNS('Data Table'!$B$5:B9))","v":"Lara"},{"$f":"INDEX('Data Table'!$B$5:$E$34,$K$1+ROWS('Data Table'!$B$5:C9),COLUMNS('Data Table'!$B$5:C9))","v":"Garments"},{"$f":"INDEX('Data Table'!$B$5:$E$34,$K$1+ROWS('Data Table'!$B$5:D9),COLUMNS('Data Table'!$B$5:D9))","v":700},{"$f":"INDEX('Data Table'!$B$5:$E$34,$K$1+ROWS('Data Table'!$B$5:E9),COLUMNS('Data Table'!$B$5:E9))","v":15}]
[null,{"$f":"INDEX('Data Table'!$B$5:$E$34,$K$1+ROWS('Data Table'!$B$5:B10),COLUMNS('Data Table'!$B$5:B10))","v":"William"},{"$f":"INDEX('Data Table'!$B$5:$E$34,$K$1+ROWS('Data Table'!$B$5:C10),COLUMNS('Data Table'!$B$5:C10))","v":"Oil"},{"$f":"INDEX('Data Table'!$B$5:$E$34,$K$1+ROWS('Data Table'!$B$5:D10),COLUMNS('Data Table'!$B$5:D10))","v":250},{"$f":"INDEX('Data Table'!$B$5:$E$34,$K$1+ROWS('Data Table'!$B$5:E10),COLUMNS('Data Table'!$B$5:E10))","v":5}]
[null,{"$f":"INDEX('Data Table'!$B$5:$E$34,$K$1+ROWS('Data Table'!$B$5:B11),COLUMNS('Data Table'!$B$5:B11))","v":"Nicolas"},{"$f":"INDEX('Data Table'!$B$5:$E$34,$K$1+ROWS('Data Table'!$B$5:C11),COLUMNS('Data Table'!$B$5:C11))","v":"Gas"},{"$f":"INDEX('Data Table'!$B$5:$E$34,$K$1+ROWS('Data Table'!$B$5:D11),COLUMNS('Data Table'!$B$5:D11))","v":300},{"$f":"INDEX('Data Table'!$B$5:$E$34,$K$1+ROWS('Data Table'!$B$5:E11),COLUMNS('Data Table'!$B$5:E11))","v":20}]
[null,{"$f":"INDEX('Data Table'!$B$5:$E$34,$K$1+ROWS('Data Table'!$B$5:B12),COLUMNS('Data Table'!$B$5:B12))","v":"Haddin"},{"$f":"INDEX('Data Table'!$B$5:$E$34,$K$1+ROWS('Data Table'!$B$5:C12),COLUMNS('Data Table'!$B$5:C12))","v":"Car"},{"$f":"INDEX('Data Table'!$B$5:$E$34,$K$1+ROWS('Data Table'!$B$5:D12),COLUMNS('Data Table'!$B$5:D12))","v":110},{"$f":"INDEX('Data Table'!$B$5:$E$34,$K$1+ROWS('Data Table'!$B$5:E12),COLUMNS('Data Table'!$B$5:E12))","v":22}]
[null,{"$f":"INDEX('Data Table'!$B$5:$E$34,$K$1+ROWS('Data Table'!$B$5:B13),COLUMNS('Data Table'!$B$5:B13))","v":"Peterson"},{"$f":"INDEX('Data Table'!$B$5:$E$34,$K$1+ROWS('Data Table'!$B$5:C13),COLUMNS('Data Table'!$B$5:C13))","v":"Chemicals"},{"$f":"INDEX('Data Table'!$B$5:$E$34,$K$1+ROWS('Data Table'!$B$5:D13),COLUMNS('Data Table'!$B$5:D13))","v":350},{"$f":"INDEX('Data Table'!$B$5:$E$34,$K$1+ROWS('Data Table'!$B$5:E13),COLUMNS('Data Table'!$B$5:E13))","v":25}]
[null,{"$f":"INDEX('Data Table'!$B$5:$E$34,$K$1+ROWS('Data Table'!$B$5:B14),COLUMNS('Data Table'!$B$5:B14))","v":"Rob"},{"$f":"INDEX('Data Table'!$B$5:$E$34,$K$1+ROWS('Data Table'!$B$5:C14),COLUMNS('Data Table'!$B$5:C14))","v":"Weapons"},{"$f":"INDEX('Data Table'!$B$5:$E$34,$K$1+ROWS('Data Table'!$B$5:D14),COLUMNS('Data Table'!$B$5:D14))","v":300},{"$f":"INDEX('Data Table'!$B$5:$E$34,$K$1+ROWS('Data Table'!$B$5:E14),COLUMNS('Data Table'!$B$5:E14))","v":10}]

{"sheet":"scroll bars","index":3,"n_rows":2,"n_cols":2,"rows_kept":2,"cut":false,"hidden":false,"merged":[[1,1,1,4]]}
[]
[null,"Vertical Scroll Bar"]

{"sheet":"diy","index":4,"n_rows":34,"n_cols":5,"rows_kept":34,"cut":false,"hidden":false,"merged":[[1,1,1,4]]}
[]
[null,"Do It Yourself"]
[]
[null,"Company Owner","Product","Number of Employee","Yearly Revenue (M)"]
[null,"Laura","Car",100,10]
[null,"James","Car",120,20]
[null,"Jane","Computer",95,12]
[null,"Peter","Garments",500,10]
[null,"Lara","Garments",700,15]
[null,"William","Oil",250,5]
[null,"Nicolas","Gas",300,20]
[null,"Haddin","Car",110,22]
[null,"Peterson","Chemicals",350,25]
[null,"Rob","Weapons",300,10]
[null,"Flintoff","Weapons",100,10]
[null,"Adam","Weapons",120,20]
[null,"Kiera","Chemicals",95,12]
[null,"Jason","Chemicals",500,10]
[null,"Ashish","Car",250,22]
[null,"Hiran","Car",300,25]
[null,"Dushan","Car",110,10]
[null,"Joy","Computer",350,10]
[null,"Kane","Garments",700,10]
[null,"Beer","Garments",650,15]
[null,"Mike","Weapons",100,10]
[null,"Gray","Weapons",120,10]
[null,"Tison","Chemicals",95,20]
[null,"Erikson","Chemicals",500,12]
[null,"Nicles","Car",350,10]
[null,"Brek","Car",700,10]
[null,"Drek","Computer",650,15]
[null,"Laren","Oil",300,20]
[null,"Jovan","Gas",110,22]
[null,"Flintar","Car",350,25]